fUST/lending_fUST_20260109
["ID","MTS","AMOUNT","RATE_DAILY","PERIOD"]
[401031226,1767889846413,-156358.86996262,0.0001701,3]
[401031228,1767889846423,-2976.38081515,0.00017108,2]
[401031230,1767889846433,-509.97635533,0.00017108,2]
[401031232,1767889846444,-4000.0,0.00017108,2]
[401031234,1767889846455,-2400.0,0.0001726,2]
[401031236,1767889846464,-1000.0,0.00017294,2]
[401031238,1767889846474,-791.0,0.00017294,2]
[401031240,1767889846484,-5439.05122134,0.0001735,2]
[401031242,1767889846497,-955.64111976,0.00017466,2]
[401031244,1767889846506,-2400.0,0.00017508,2]
[401031246,1767889846516,-4000.0,0.00017534,2]
[401031248,1767889846525,-4000.0,0.00017534,2]
[401031250,1767889846535,-4000.0,0.00017534,2]
[401031252,1767889846545,-4500.0,0.00017656,2]
[401031254,1767889846555,-479.78804727,0.00017842,2]
[401031257,1767889846565,-150894.00766706,0.00018,2]
[401031259,1767889846575,-3120.51812043,0.00018,5]
[401031261,1767889846584,-5000.0,0.00018018,2]
[401031263,1767889846594,-1207.44944301,0.00018056,2]
[401031265,1767889846603,-4500.0,0.00018082,2]
[401031267,1767889846612,-4500.0,0.00018082,2]
[401031269,1767889846623,-4500.0,0.00018082,2]
[401031271,1767889846632,-107142.88,0.00018082,3]
[401031273,1767889846642,-5000.0,0.00018204,2]
[401031275,1767889846656,-2000.0,0.00018356,7]
[401031277,1767889846665,-298.54993556,0.00018356,2]
[401031279,1767889846675,-3162.0,0.00018444,2]
[401031281,1767889846684,-6003.0,0.00018444,2]
[401031283,1767889846694,-564.738811,0.00018493,2]
[401031285,1767889846703,-4592.0276856,0.00018532,2]
[401031287,1767889846714,-5000.0,0.0001863,2]
[401031289,1767889846723,-2395.64095761,0.0001863,2]
[401031291,1767889846733,-5000.0,0.0001863,2]
[401031293,1767889846745,-5500.0,0.00018752,2]
[401031295,1767889846755,-303.06364003,0.000189,2]
[401031297,1767889846765,-125980.80402723,0.000189,5]
[401031299,1767889846774,-151.0,0.000189,2]
[401031302,1767889846784,-2000.0,0.00018938,7]
[401031304,1767889846793,-356.47419888,0.00019,20]
[401031306,1767889846802,-1000.0,0.00019024,2]
[401031308,1767889846812,-1000.0,0.00019024,2]
[401031310,1767889846821,-303.06364003,0.00019089,2]
[401031312,1767889846830,-5500.0,0.00019178,2]
[401031314,1767889846840,-1167.21136956,0.00019178,2]
[401031316,1767889846850,-20550.55,0.000192,2]
[401031318,1767889846860,-167.4,0.000192,2]
[401031320,1767889846869,-498.42576809,0.00019205,5]
[401031322,1767889846878,-303.06364003,0.00019278,2]
[401031324,1767889846888,-163.27,0.000193,2]
[401031326,1767889846897,-164.69,0.000193,2]
[401031328,1767889846907,-1502.08,0.000193,2]
[401031330,1767889846916,-2031.92126105,0.000193,2]
[401031332,1767889846926,-258.19474322,0.0001937,3]
[401031334,1767889846935,-1055.65007416,0.00019466,2]
[401031336,1767889846945,-303.06364003,0.00019467,2]
[401031338,1767889846954,-2000.0,0.0001952,7]
[401031340,1767889846963,-303.06364003,0.00019656,2]
[401031342,1767889846973,-6000.0,0.00019726,2]
[401031344,1767889846983,-454.59546005,0.00019845,4]
[401031346,1767889846994,-1003.0,0.0002,2]
[401031348,1767889847003,-77453.2393471,0.0002,2]
[401031350,1767889847015,-300.26582625,0.0002,2]
[401031352,1767889847025,-235.35118995,0.00020034,4]
[401031354,1767889847035,-476.9,0.00020059,2]
[401031356,1767889847044,-2000.0,0.00020103,7]
[401031358,1767889847055,-1041.66666667,0.00020124,2]
[401031360,1767889847065,-5439.05122134,0.00020211,2]
[401031362,1767889847075,-6500.0,0.00020274,2]
[401031365,1767889847085,-4427.0,0.00020288,2]
[401031367,1767889847095,-160.18626186,0.00020343,2]
[401031369,1767889847105,-206.0,0.00020466,3]
[401031371,1767889847114,-2881.087546,0.00020548,2]
[401031373,1767889847125,-172.18674375,0.00020671,2]
[401031375,1767889847135,-2000.0,0.00020685,7]
[401031377,1767889847145,-20550.55,0.000207,2]
[401031379,1767889847157,-7000.0,0.00020822,2]
[401031381,1767889847167,-1000.0,0.00020926,2]
[401031383,1767889847176,-1000.0,0.00020926,2]
[401031385,1767889847186,-579.0,0.00020926,2]
[401031389,1767889847196,-1502.08,0.00021,2]
[401031392,1767889847206,-987.26,0.00021,7]
[401031395,1767889847216,-345.32757796,0.00021,2]
[401031398,1767889847226,-22304.26684721,0.00021,2]
[401031401,1767889847236,-476.9,0.00021254,2]
[401031403,1767889847245,-2000.0,0.00021267,7]
[401031405,1767889847255,-2884.88182039,0.0002137,2]
[401031407,1767889847265,-163.27,0.000214,2]
[401031409,1767889847276,-164.69,0.000214,2]
[401031411,1767889847285,-1155.65902855,0.00021466,2]
[401031413,1767889847295,-1039.02352417,0.000215,2]
[401031415,1767889847305,-12852.18434421,0.000215,2]
[401031417,1767889847315,-6016.02406311,0.000215,2]
[401031419,1767889847325,-207.0,0.00021562,5]
[401031421,1767889847334,-2000.0,0.00021849,7]
[401031423,1767889847344,-564.738811,0.00021918,2]
[401031425,1767889847354,-151.17138734,0.00021918,2]
[401031427,1767889847364,-512.54,0.00022,2]
[401031430,1767889847374,-28541.27315898,0.00022,2]
[401031432,1767889847384,-6198.0,0.00022317,2]
[401031434,1767889847394,-2000.0,0.00022431,7]
[401031436,1767889847404,-476.9,0.00022448,2]
[401031438,1767889847414,-875.15,0.000225,7]
[401031440,1767889847424,-208.0,0.00022658,7]
[401031442,1767889847434,-4592.0276856,0.00022967,2]
[401031444,1767889847444,-1041.66666667,0.00023,3]
[401031446,1767889847454,-2000.0,0.00023014,7]
[401031448,1767889847464,-1000.0,0.00023019,10]
[401031450,1767889847474,-1000.0,0.00023019,10]
[401031452,1767889847484,-1000.0,0.00023019,10]
[401031454,1767889847494,-5439.05122134,0.00023072,2]
[401031456,1767889847504,-1255.66798294,0.00023466,2]
[401031459,1767889847514,-2000.0,0.00023596,7]
[401031461,1767889847524,-20550.55,0.000236,2]
[401031463,1767889847534,-476.9,0.00023643,2]
[401031465,1767889847545,-210.0,0.00023753,11]
[401031467,1767889847556,-1502.08,0.00024,14]
[401031469,1767889847565,-1041.66666667,0.00024,7]
[401031471,1767889847575,-2373.26906487,0.00024096,2]
[401031473,1767889847586,-452487.29550047,0.00024142,2]
[401031475,1767889847596,-2000.0,0.00024178,7]
[401031477,1767889847606,-512.54,0.000242,2]
[401031480,1767889847618,-50264.40458466,0.000242,2]
[401031482,1767889847631,-2373.26906487,0.00024372,2]
[401031484,1767889847641,-2373.26906487,0.00024493,2]
[401031486,1767889847651,-156750.63074783,0.0002465,2]
[401031488,1767889847661,-513.88250982,0.0002465,2]
[401031490,1767889847671,-151.0,0.00024658,2]
[401031492,1767889847682,-151.0,0.00024658,2]
[401031494,1767889847692,-151.0,0.00024658,2]
[401031496,1767889847705,-179.188398,0.00024658,2]
[401031498,1767889847714,-2391.210697,0.00024658,2]
[401031500,1767889847724,-151.0,0.00024658,2]
[401031502,1767889847734,-2391.210697,0.00024658,2]
[401031504,1767889847746,-2391.210697,0.00024658,2]
[401031506,1767889847756,-151.0,0.00024658,2]
[401031508,1767889847766,-2391.210697,0.00024658,2]
[401031510,1767889847776,-151.0,0.00024658,2]
[401031512,1767889847786,-262.112916,0.00024658,2]
[401031515,1767889847796,-151.0,0.00024658,2]
[401031517,1767889847806,-151.0,0.00024658,2]
[401031519,1767889847817,-151.0,0.00024658,2]
[401031521,1767889847827,-195.610594,0.00024658,2]
[401031523,1767889847837,-195.610594,0.00024658,2]
[401031525,1767889847846,-151.0,0.00024658,2]
[401031527,1767889847857,-195.610594,0.00024658,2]
[401031529,1767889847868,-153.60505,0.00024658,2]
[401031531,1767889847879,-195.610594,0.00024658,2]
[401031533,1767889847889,-151.0,0.00024658,2]
[401031535,1767889847899,-500.0,0.00024658,2]
[401031538,1767889847909,-163.27,0.000247,7]
[401031540,1767889847919,-164.69,0.000247,7]
[401031542,1767889847929,-71428.56,0.000247,3]
[401031544,1767889847939,-151.0,0.000247,7]
[401031545,1767889847948,-151.0,0.000247,7]
[401031547,1767889847958,-151.0,0.000247,2]
[401031550,1767889847971,-2000.0,0.0002476,7]
[401031552,1767889847981,-16824.61855787,0.00024774,2]
[401031554,1767889847995,-500.0,0.00024795,2]
[401031556,1767889848005,-151.0,0.000248,7]
[401031558,1767889848016,-151.0,0.000248,7]
[401031560,1767889848027,-151.0,0.000248,7]
[401031562,1767889848037,-1439.873322,0.000248,7]
[401031564,1767889848047,-1439.873322,0.000248,7]
[401031566,1767889848057,-1439.873322,0.000248,7]
[401031569,1767889848068,-1439.873322,0.000248,7]
[401031571,1767889848078,-757.340513,0.000248,7]
[401031573,1767889848088,-151.0,0.000248,7]
[401031575,1767889848098,-757.340513,0.000248,7]
[401031577,1767889848108,-757.340513,0.000248,7]
[401031579,1767889848118,-341.324064,0.000248,7]
[401031581,1767889848128,-757.340513,0.000248,7]
[401031583,1767889848137,-341.324064,0.000248,7]
[401031585,1767889848147,-341.324064,0.000248,7]
[401031587,1767889848157,-341.324064,0.000248,7]
[401031589,1767889848168,-2373.26906487,0.0002481,2]
[401031591,1767889848178,-476.9,0.00024838,2]
[401031593,1767889848188,-212.0,0.00024849,14]
[401031595,1767889848198,-875.15,0.000249,7]
[401031597,1767889848207,-250.0,0.000249,2]
[401031599,1767889848217,-250.4,0.000249,2]
[401031601,1767889848227,-412.85,0.000249,7]
[401031604,1767889848238,-412.85,0.000249,7]
[401031606,1767889848248,-412.85,0.000249,7]
[401031608,1767889848258,-412.85,0.000249,7]
[401031609,1767889848267,-151.58214,0.000249,7]
[401031612,1767889848277,-1222.595979,0.000249,7]
[401031614,1767889848288,-1222.595979,0.000249,7]
[401031616,1767889848298,-522.121584,0.000249,7]
[401031618,1767889848307,-1222.595979,0.000249,7]
[401031620,1767889848317,-522.121584,0.000249,7]
[401031622,1767889848327,-1222.595979,0.000249,7]
[401031624,1767889848337,-522.121584,0.000249,7]
[401031626,1767889848347,-522.121584,0.000249,7]
[401031628,1767889848357,-151.0,0.000249,7]
[401031630,1767889848366,-151.0,0.000249,7]
[401031632,1767889848377,-151.0,0.000249,7]
[401031634,1767889848387,-153.716458,0.000249,7]
[401031636,1767889848396,-183.558633,0.000249,7]
[401031638,1767889848406,-183.558633,0.000249,7]
[401031641,1767889848415,-183.558633,0.000249,7]
[401031642,1767889848425,-183.558633,0.000249,7]
[401031643,1767889848435,-151.0,0.000249,7]
[401031644,1767889848444,-151.0,0.000249,7]
[401031645,1767889848455,-151.0,0.000249,7]
[401031646,1767889848464,-622.20825,0.000249,7]
[401031648,1767889848476,-622.20825,0.000249,7]
[401031649,1767889848487,-622.20825,0.000249,7]
[401031650,1767889848496,-622.20825,0.000249,7]
[401031651,1767889848507,-151.0,0.000249,7]
[401031652,1767889848517,-151.0,0.000249,7]
[401031653,1767889848526,-191.094302,0.000249,7]
[401031654,1767889848536,-151.0,0.000249,7]
[401031655,1767889848545,-191.094302,0.000249,7]
[401031656,1767889848555,-151.0,0.000249,7]
[401031657,1767889848565,-191.094302,0.000249,7]
[401031658,1767889848574,-643721.038142,0.000249,2]
[401031659,1767889848584,-191.094302,0.000249,7]
[401031660,1767889848594,-182.749737,0.000249,7]
[401031661,1767889848604,-182.749737,0.000249,7]
[401031662,1767889848616,-182.749737,0.000249,7]
[401031663,1767889848626,-182.749737,0.000249,7]
[401031664,1767889848636,-151.0,0.000249,7]
[401031665,1767889848647,-151.0,0.000249,7]
[401031666,1767889848657,-151.0,0.000249,7]
[401031667,1767889848667,-2391.210697,0.000249,7]
[401031668,1767889848677,-151.0,0.000249,7]
[401031669,1767889848687,-2391.210697,0.000249,7]
[401031670,1767889848700,-2391.210697,0.000249,7]
[401031671,1767889848710,-151.0,0.000249,7]
[401031672,1767889848720,-2391.210697,0.000249,7]
[401031673,1767889848730,-151.0,0.000249,7]
[401031674,1767889848741,-238.415405,0.000249,7]
[401031675,1767889848751,-227.192077,0.000249,7]
[401031676,1767889848761,-195.610594,0.000249,7]
[401031677,1767889848770,-195.610594,0.000249,7]
[401031678,1767889848780,-151.0,0.000249,7]
[401031679,1767889848790,-195.610594,0.000249,7]
[401031680,1767889848799,-195.610594,0.000249,7]
[401031681,1767889848810,-500.0,0.00024932,2]
[401031682,1767889848820,-2373.26906487,0.00024966,2]
[401031683,1767889848831,-1041.62696315,0.00025,7]
[401031684,1767889848840,-167.0,0.00025,7]
[401031685,1767889848850,-184.0,0.00025,7]
[401031686,1767889848860,-559.59362836,0.00025,15]
[401031687,1767889848870,-2662.11877043,0.00025,2]
[401031688,1767889848879,-2673.80811109,0.00025,2]
[401031689,1767889848889,-20757.85955183,0.00025,2]
[401031690,1767889848898,-10364.0,0.00025,2]
[401031691,1767889848908,-500.0,0.00025,2]
[401031692,1767889848918,-300.0,0.00025,30]
[401031693,1767889848927,-1557.93414873,0.00025,2]
[401031694,1767889848938,-759.14155668,0.00025,2]
[401031695,1767889848948,-1041.66666667,0.00025,7]
[401031696,1767889848958,-500.0,0.00025069,2]
[401031697,1767889848969,-579.94263287,0.000252,5]
[401031698,1767889848979,-250.0,0.00025205,2]
[401031699,1767889848990,-500.0,0.00025206,2]
[401031700,1767889849000,-1000.0,0.00025321,10]
[401031701,1767889849010,-1000.0,0.00025321,10]
[401031702,1767889849020,-1000.0,0.00025321,10]
[401031703,1767889849030,-715.0,0.00025321,10]
[401031704,1767889849040,-2000.0,0.00025342,7]
[401031705,1767889849050,-564.738811,0.00025342,2]
[401031706,1767889849060,-500.0,0.00025343,2]
[401031707,1767889849069,-167.4,0.000254,7]
[401031708,1767889849080,-2373.26906487,0.00025446,2]
[401031709,1767889849090,-1355.67693734,0.00025466,2]
[401031710,1767889849100,-900.0,0.00025469,3]
[401031711,1767889849110,-500.0,0.0002548,2]
[401031712,1767889849119,-512.54,0.000255,2]
[401031713,1767889849130,-1000.0,0.000255,2]
[401031714,1767889849140,-500.0,0.00025617,2]
[401031715,1767889849150,-160.0,0.00025655,3]
[401031716,1767889849161,-35714.28,0.000257,3]
[401031717,1767889849171,-2373.26906487,0.00025736,2]
[401031718,1767889849181,-350.0,0.00025753,2]
[401031719,1767889849192,-20550.55,0.000258,2]
[401031720,1767889849202,-167.0,0.0002589,7]
[401031721,1767889849211,-2373.26906487,0.00025908,2]
[401031722,1767889849222,-2000.0,0.00025925,7]
[401031723,1767889849231,-5439.05122134,0.00025932,2]
[401031724,1767889849242,-213.0,0.00025945,18]
[401031725,1767889849251,-180.01980218,0.00025967,2]
[401031726,1767889849261,-1502.08,0.00026,14]
[401031727,1767889849270,-244104.72396209,0.00026,30]
[401031728,1767889849279,-17467.00445744,0.00026,2]
[401031729,1767889849289,-161.0,0.00026,5]
[401031730,1767889849299,-1041.66666667,0.00026,30]
[401031731,1767889849310,-171.590843,0.00026,7]
[401031732,1767889849488,-151.366366,0.00026,2]
[401031733,1767889849498,-2373.26906487,0.0002603,2]
[401031734,1767889849507,-476.9,0.00026032,2]
[401031735,1767889849517,-194.59744594,0.0002616,2]
[401031736,1767889849526,-1200.0,0.00026263,7]
[401031737,1767889849536,-500.0,0.0002627,7]
[401031738,1767889849546,-875.15,0.000263,7]
[401031739,1767889849556,-163.27,0.000263,7]
[401031740,1767889849566,-164.69,0.000263,7]
[401031741,1767889849576,-450.0,0.00026301,2]
[401031742,1767889849585,-1200.0,0.00026315,7]
[401031743,1767889849595,-2373.26906487,0.00026345,2]
[401031744,1767889849604,-600.0,0.00026369,7]
[401031745,1767889849614,-2000.0,0.00026507,7]
[401031746,1767889849626,-1200.0,0.00026511,7]
[401031747,1767889849636,-1200.0,0.0002654,7]
[401031748,1767889849645,-200.0,0.0002654,14]
[401031749,1767889849654,-2373.26906487,0.000266,2]
[401031750,1767889849664,-512.54,0.000267,2]
[401031751,1767889849673,-1200.0,0.00026747,7]
[401031752,1767889849683,-160.0,0.00026749,4]
[401031753,1767889849693,-1041.66666667,0.000268,30]
[401031754,1767889849702,-1200.0,0.00026849,7]
[401031755,1767889849712,-550.0,0.00026849,2]
[401031756,1767889849722,-500.0,0.00026912,7]
[401031757,1767889849732,-230.27,0.00026948,2]
[401031758,1767889849742,-218.96,0.00026948,2]
[401031759,1767889849752,-1200.0,0.0002696,7]
[401031760,1767889849762,-2373.26906487,0.00026981,2]
[401031761,1767889849771,-20550.55,0.00027,2]
[401031762,1767889849781,-199.999999,0.00027,2]
[401031763,1767889849791,-600.0,0.00027,14]
[401031764,1767889849800,-75040.16705244,0.00027,30]
[401031765,1767889849810,-240.0,0.00027041,23]
[401031766,1767889849819,-1200.0,0.00027043,7]
[401031767,1767889849828,-1200.0,0.00027075,7]
[401031768,1767889849838,-2000.0,0.00027089,7]
[401031769,1767889849847,-1200.0,0.00027197,7]
[401031770,1767889849857,-1502.08,0.000272,14]
[401031771,1767889849867,-476.9,0.00027227,2]
[401031772,1767889849877,-2373.26906487,0.0002723,2]
[401031773,1767889849886,-30000.0,0.0002724,2]
[401031774,1767889849896,-181.08010149,0.0002724,2]
[401031775,1767889849905,-1500.0,0.0002724,2]
[401031776,1767889849915,-1500.0,0.0002724,2]
[401031777,1767889849924,-1500.0,0.0002724,2]
[401031778,1767889849933,-2030.296672,0.0002724,2]
[401031779,1767889849943,-1500.0,0.0002724,2]
[401031780,1767889849952,-1500.0,0.0002724,2]
[401031781,1767889849962,-1500.0,0.0002724,2]
[401031782,1767889849971,-151.0,0.0002724,2]
[401031783,1767889849981,-1500.0,0.0002724,2]
[401031784,1767889849991,-151.15345632,0.0002724,2]
[401031785,1767889850000,-1500.0,0.0002724,2]
[401031786,1767889850009,-1500.0,0.0002724,2]
[401031787,1767889850019,-1500.0,0.0002724,2]
[401031788,1767889850029,-1500.0,0.0002724,2]
[401031789,1767889850038,-521.89158797,0.0002724,2]
[401031790,1767889850048,-151.0,0.0002724,2]
[401031791,1767889850058,-257.29907451,0.0002724,2]
[401031792,1767889850067,-151.0,0.0002724,2]
[401031793,1767889850077,-151.0,0.0002724,2]
[401031794,1767889850087,-151.0,0.0002724,2]
[401031795,1767889850097,-151.0,0.0002724,2]
[401031796,1767889850107,-151.0,0.0002724,2]
[401031798,1767889850116,-151.0,0.0002724,2]
[401031800,1767889850125,-500.0,0.0002724,2]
[401031802,1767889850135,-151.0,0.0002724,2]
[401031804,1767889850145,-500.0,0.0002724,2]
[401031805,1767889850155,-151.0,0.0002724,2]
[401031807,1767889850164,-500.0,0.0002724,2]
[401031808,1767889850173,-151.0,0.0002724,2]
[401031810,1767889850183,-500.0,0.0002724,2]
[401031812,1767889850192,-151.0,0.0002724,2]
[401031814,1767889850201,-151.0,0.0002724,2]
[401031815,1767889850211,-500.0,0.0002724,2]
[401031816,1767889850219,-496.47127164,0.0002724,2]
[401031817,1767889850228,-500.0,0.0002724,2]
[401031818,1767889850240,-500.0,0.0002724,2]
[401031819,1767889850249,-626.47325435,0.0002724,2]
[401031820,1767889850259,-250.0,0.0002724,2]
[401031821,1767889850268,-2105.41764886,0.00027295,2]
[401031822,1767889850277,-10000.0,0.00027297,2]
[401031823,1767889850287,-2183.31810187,0.0002735,2]
[401031825,1767889850296,-297.19318623,0.00027397,5]
[401031826,1767889850305,-500.0,0.00027397,5]
[401031827,1767889850314,-500.0,0.00027397,5]
[401031828,1767889850324,-560.7242137,0.00027397,5]
[401031829,1767889850334,-500.0,0.00027397,5]
[401031831,1767889850343,-186.27742242,0.00027397,5]
[401031832,1767889850352,-500.0,0.00027397,5]
[401031833,1767889850361,-500.0,0.00027397,5]
[401031834,1767889850371,-171.829329,0.00027397,5]
[401031835,1767889850380,-500.0,0.00027397,5]
[401031836,1767889850389,-500.0,0.00027397,5]
[401031837,1767889850398,-251.453668,0.00027397,5]
[401031838,1767889850407,-500.0,0.00027397,5]
[401031839,1767889850418,-15423.48474157,0.00027397,5]
[401031840,1767889850428,-500.0,0.00027397,5]
[401031842,1767889850438,-355.29068701,0.00027397,5]
[401031843,1767889850447,-508.02726493,0.00027397,5]
[401031844,1767889850457,-524.58162969,0.00027397,5]
[401031845,1767889850466,-500.0,0.00027397,5]
[401031846,1767889850475,-500.0,0.00027397,5]
[401031847,1767889850484,-500.0,0.00027397,5]
[401031848,1767889850495,-372.84028944,0.00027397,5]
[401031849,1767889850505,-500.0,0.00027397,5]
[401031850,1767889850515,-500.0,0.00027397,5]
[401031851,1767889850524,-500.0,0.00027397,5]
[401031852,1767889850533,-500.0,0.00027397,5]
[401031853,1767889850543,-500.0,0.00027397,5]
[401031854,1767889850552,-570.93767114,0.00027397,5]
[401031855,1767889850561,-500.0,0.00027397,5]
[401031856,1767889850570,-641.64319289,0.00027397,5]
[401031857,1767889850580,-500.0,0.00027397,5]
[401031858,1767889850589,-500.0,0.00027397,5]
[401031859,1767889850598,-500.0,0.00027397,5]
[401031860,1767889850608,-500.0,0.00027397,5]
[401031861,1767889850621,-500.0,0.00027397,5]
[401031862,1767889850631,-600.55324416,0.00027397,2]
[401031863,1767889850640,-500.0,0.00027397,5]
[401031864,1767889850649,-500.0,0.00027397,5]
[401031866,1767889850660,-500.0,0.00027397,5]
[401031867,1767889850670,-500.0,0.00027397,5]
[401031868,1767889850679,-500.0,0.00027397,5]
[401031869,1767889850688,-500.0,0.00027397,5]
[401031871,1767889850699,-500.0,0.00027397,5]
[401031872,1767889850709,-500.0,0.00027397,5]
[401031873,1767889850718,-534.72,0.00027397,5]
[401031875,1767889850727,-500.0,0.00027397,5]
[401031876,1767889850736,-500.0,0.00027397,5]
[401031877,1767889850746,-500.0,0.00027397,5]
[401031878,1767889850755,-500.0,0.00027397,5]
[401031880,1767889850764,-500.0,0.00027397,5]
[401031881,1767889850773,-500.0,0.00027397,5]
[401031882,1767889850782,-238.10161712,0.00027397,5]
[401031883,1767889850792,-500.0,0.00027397,5]
[401031885,1767889850802,-501.49189016,0.00027397,5]
[401031886,1767889850811,-500.0,0.00027397,5]
[401031887,1767889850821,-500.0,0.00027397,5]
[401031889,1767889850831,-500.0,0.00027397,5]
[401031890,1767889850842,-500.0,0.00027397,5]
[401031891,1767889850851,-500.0,0.00027397,5]
[401031892,1767889850860,-500.0,0.00027397,5]
[401031894,1767889850869,-500.0,0.00027397,5]
[401031895,1767889850880,-500.0,0.00027397,5]
[401031896,1767889850889,-500.0,0.00027397,5]
[401031897,1767889850898,-500.0,0.00027397,5]
[401031898,1767889850908,-500.0,0.00027397,5]
[401031899,1767889850917,-500.0,0.00027397,5]
[401031900,1767889850926,-492.36217128,0.00027397,5]
[401031901,1767889850936,-500.0,0.00027397,2]
[401031902,1767889850945,-500.0,0.00027397,5]
[401031903,1767889850955,-500.0,0.00027397,5]
[401031904,1767889850964,-500.0,0.00027397,5]
[401031905,1767889850974,-336.81040355,0.00027397,5]
[401031906,1767889850983,-308.82385964,0.00027397,5]
[401031907,1767889850993,-500.0,0.00027397,5]
[401031908,1767889851002,-500.0,0.00027397,5]
[401031909,1767889851011,-500.0,0.00027397,5]
[401031910,1767889851021,-216.1712136,0.00027397,5]
[401031911,1767889851030,-500.0,0.00027397,5]
[401031912,1767889851039,-500.0,0.00027397,5]
[401031913,1767889851049,-185.84971769,0.00027397,5]
[401031914,1767889851058,-500.0,0.00027397,5]
[401031915,1767889851071,-500.0,0.00027397,2]
[401031916,1767889851080,-500.0,0.00027397,5]
[401031917,1767889851090,-500.0,0.00027397,5]
[401031918,1767889851099,-500.0,0.00027397,5]
[401031919,1767889851109,-500.0,0.00027397,5]
[401031920,1767889851118,-491.78957999,0.00027397,5]
[401031921,1767889851127,-500.0,0.00027397,5]
[401031922,1767889851136,-393.21553345,0.00027397,5]
[401031923,1767889851146,-500.0,0.00027397,5]
[401031924,1767889851155,-500.0,0.00027397,5]
[401031925,1767889851164,-500.0,0.00027397,5]
[401031926,1767889851174,-500.0,0.00027397,5]
[401031927,1767889851183,-500.0,0.00027397,5]
[401031928,1767889851192,-500.0,0.00027397,5]
[401031929,1767889851202,-422.53747681,0.00027397,5]
[401031930,1767889851211,-500.0,0.00027397,5]
[401031931,1767889851219,-500.0,0.00027397,5]
[401031932,1767889851228,-236.70087265,0.00027397,5]
[401031933,1767889851237,-500.0,0.00027397,5]
[401031934,1767889851247,-500.0,0.00027397,5]
[401031935,1767889851256,-500.0,0.00027397,5]
[401031936,1767889851266,-274.85943086,0.00027397,5]
[401031937,1767889851275,-500.0,0.00027397,5]
[401031938,1767889851285,-533.61862742,0.00027397,5]
[401031939,1767889851294,-500.0,0.00027397,5]
[401031940,1767889851304,-508.07366699,0.00027397,5]
[401031941,1767889851313,-500.0,0.00027397,5]
[401031942,1767889851322,-500.0,0.00027397,5]
[401031943,1767889851331,-500.0,0.00027397,5]
[401031944,1767889851341,-500.0,0.00027397,5]
[401031945,1767889851350,-542.97643067,0.00027397,5]
[401031946,1767889851359,-500.0,0.00027397,5]
[401031947,1767889851369,-171.829328,0.00027397,5]
[401031948,1767889851378,-500.0,0.00027397,5]
[401031949,1767889851387,-500.0,0.00027397,5]
[401031950,1767889851397,-500.0,0.00027397,5]
[401031951,1767889851406,-500.0,0.00027397,5]
[401031952,1767889851415,-500.0,0.00027397,5]
[401031953,1767889851424,-500.0,0.00027397,5]
[401031954,1767889851434,-500.0,0.00027397,5]
[401031955,1767889851443,-692.57,0.00027397,5]
[401031956,1767889851452,-500.0,0.00027397,5]
[401031957,1767889851461,-412.74437433,0.00027397,5]
[401031958,1767889851470,-500.0,0.00027397,5]
[401031959,1767889851479,-500.0,0.00027397,5]
[401031960,1767889851488,-489.06772997,0.00027397,5]